[Event "Titled Tuesday Blitz August 31 2021"]
[White "Seo, Jung Min"]
[Black "Kucuksari, Kaan"]
[WhiteFideId "1734687"]
[BlackFideId "6380166"]
[WhiteElo "2486"]
[BlackElo "2300"]
[Result "1-0"]
[Round "01"]
[TimeControl "180+1"]
[Date "2021.08.31"]
[WhiteClock "0:00:28"]
[BlackClock "0:00:17"]

1. g3 {[%clk 0:03:00]}  c5 {[%clk 0:02:58]} 2. Bg2 {[%clk 0:03:00]}  Nc6 {[%clk 0:02:58]} 3. Nf3 {[%clk 0:03:01]}  e5 {[%clk 0:02:57]} 4. e4 {[%clk 0:03:01]}  Nf6 {[%clk 0:02:56]} 5. Nc3 {[%clk 0:03:00]}  d5 {[%clk 0:02:54]} 6. exd5 {[%clk 0:03:00]}  Nxd5 {[%clk 0:02:55]} 7. Nxe5 {[%clk 0:02:41]}  Nxe5 {[%clk 0:02:36]} 8. Bxd5 {[%clk 0:02:40]}  Bg4 {[%clk 0:02:37]} 9. f3 {[%clk 0:02:40]}  Bh3 {[%clk 0:02:26]} 10. Qe2 {[%clk 0:02:31]}  Qe7 {[%clk 0:01:59]} 11. f4 {[%clk 0:02:23]}  Nc6 {[%clk 0:01:57]} 12. Qxe7+ {[%clk 0:02:22]}  Bxe7 {[%clk 0:01:58]} 13. Bxc6+ {[%clk 0:02:09]}  bxc6 {[%clk 0:01:58]} 14. d3 {[%clk 0:02:09]}  O-O {[%clk 0:01:55]} 15. Be3 {[%clk 0:02:09]}  Bg4 {[%clk 0:01:49]} 16. O-O {[%clk 0:02:05]}  Rab8 {[%clk 0:01:47]} 17. Rab1 {[%clk 0:02:01]}  Rfe8 {[%clk 0:01:45]} 18. Rfe1 {[%clk 0:02:01]}  h5 {[%clk 0:01:10]} 19. b3 {[%clk 0:01:56]}  h4 {[%clk 0:01:09]} 20. Na4 {[%clk 0:01:51]}  h3 {[%clk 0:00:31]} 21. Bxc5 {[%clk 0:01:47]}  Bf6 {[%clk 0:00:29]} 22. Bxa7 {[%clk 0:01:43]}  Ra8 {[%clk 0:00:27]} 23. Bc5 {[%clk 0:01:42]}  Bf3 {[%clk 0:00:23]} 24. Kf2 {[%clk 0:01:40]}  Bg2 {[%clk 0:00:23]} 25. a3 {[%clk 0:01:34]}  Red8 {[%clk 0:00:22]} 26. Re3 {[%clk 0:01:19]}  g5 {[%clk 0:00:21]} 27. Be7 {[%clk 0:01:11]}  gxf4 {[%clk 0:00:20]} 28. gxf4 {[%clk 0:01:10]}  Bd4 {[%clk 0:00:21]} 29. Bxd8 {[%clk 0:01:10]}  Rxd8 {[%clk 0:00:22]} 30. c3 {[%clk 0:01:04]}  Bxe3+ {[%clk 0:00:22]} 31. Kxe3 {[%clk 0:01:04]}  Re8+ {[%clk 0:00:21]} 32. Kd2 {[%clk 0:01:04]}  f6 {[%clk 0:00:20]} 33. Re1 {[%clk 0:01:03]}  Rd8 {[%clk 0:00:19]} 34. Nc5 {[%clk 0:01:01]}  Kf7 {[%clk 0:00:20]} 35. a4 {[%clk 0:00:59]}  Bd5 {[%clk 0:00:19]} 36. c4 {[%clk 0:00:58]}  Bf3 {[%clk 0:00:19]} 37. Re3 {[%clk 0:00:56]}  Bg4 {[%clk 0:00:20]} 38. a5 {[%clk 0:00:55]}  Ra8 {[%clk 0:00:20]} 39. b4 {[%clk 0:00:55]}  Kg6 {[%clk 0:00:18]} 40. a6 {[%clk 0:00:51]}  Rb8 {[%clk 0:00:17]} 41. a7 {[%clk 0:00:48]}  Ra8 {[%clk 0:00:17]} 42. Re7 {[%clk 0:00:48]}  Kf5 {[%clk 0:00:17]} 43. b5 {[%clk 0:00:48]}  cxb5 {[%clk 0:00:17]} 44. cxb5 {[%clk 0:00:48]}  Kxf4 {[%clk 0:00:17]} 45. b6 {[%clk 0:00:48]}  Bf3 {[%clk 0:00:18]} 46. d4 {[%clk 0:00:40]}  Bd5 {[%clk 0:00:15]} 47. Rd7 {[%clk 0:00:39]}  Bc6 {[%clk 0:00:15]} 48. Rc7 {[%clk 0:00:36]}  Bh1 {[%clk 0:00:14]} 49. b7 {[%clk 0:00:35]}  Bxb7 {[%clk 0:00:14]} 50. Rxb7 {[%clk 0:00:35]}  Kf3 {[%clk 0:00:14]} 51. Ne6 {[%clk 0:00:35]}  Kg2 {[%clk 0:00:13]} 52. Nc7 {[%clk 0:00:35]}  Rd8 {[%clk 0:00:14]} 53. a8=Q {[%clk 0:00:35]}  Rxa8 {[%clk 0:00:14]} 54. Nxa8 {[%clk 0:00:35]}  Kxh2 {[%clk 0:00:15]} 55. Rg7 {[%clk 0:00:34]}  f5 {[%clk 0:00:15]} 56. d5 {[%clk 0:00:34]}  f4 {[%clk 0:00:16]} 57. d6 {[%clk 0:00:34]}  f3 {[%clk 0:00:17]} 58. d7 {[%clk 0:00:34]}  f2 {[%clk 0:00:17]} 59. Ke2 {[%clk 0:00:31]}  Kh1 {[%clk 0:00:17]} 60. Kxf2 {[%clk 0:00:28]}  h2 {[%clk 0:00:17]} 61. Kg3 {[%clk 0:00:28]}  Kg1 {[%clk 0:00:17]} 62. Rh7 {[%clk 0:00:28]} 1-0


[Site "https://www.chess.com"]

[Event "Titled Tuesday Blitz August 31 2021"]
[White "Shishkov, Andrei"]
[Black "Wong, Yinn Long"]
[WhiteFideId "4500563"]
[BlackFideId "5707684"]
[WhiteElo "2322"]
[BlackElo "2016"]
[Result "0-1"]
[Round "01"]
[TimeControl "180+1"]
[Date "2021.08.31"]
[WhiteClock "0:00:07"]
[BlackClock "0:00:38"]

1. d4 {[%clk 0:02:58]}  Nf6 {[%clk 0:02:59]} 2. c4 {[%clk 0:02:57]}  e6 {[%clk 0:03:00]} 3. Nc3 {[%clk 0:02:57]}  Bb4 {[%clk 0:02:59]} 4. Qc2 {[%clk 0:02:57]}  Nc6 {[%clk 0:02:59]} 5. Nf3 {[%clk 0:02:57]}  d6 {[%clk 0:03:00]} 6. Bd2 {[%clk 0:02:56]}  O-O {[%clk 0:02:59]} 7. a3 {[%clk 0:02:56]}  Bxc3 {[%clk 0:03:00]} 8. Bxc3 {[%clk 0:02:57]}  Qe7 {[%clk 0:03:00]} 9. e3 {[%clk 0:02:56]}  e5 {[%clk 0:03:00]} 10. dxe5 {[%clk 0:02:57]}  Nxe5 {[%clk 0:02:50]} 11. Nxe5 {[%clk 0:02:27]}  dxe5 {[%clk 0:02:50]} 12. Bd3 {[%clk 0:02:24]}  b6 {[%clk 0:02:43]} 13. O-O {[%clk 0:02:22]}  Bb7 {[%clk 0:02:44]} 14. Rfd1 {[%clk 0:02:19]}  Rad8 {[%clk 0:02:42]} 15. Rd2 {[%clk 0:01:59]}  c5 {[%clk 0:02:26]} 16. Rad1 {[%clk 0:01:58]}  h6 {[%clk 0:02:17]} 17. Bf5 {[%clk 0:01:50]}  g6 {[%clk 0:02:07]} 18. Bxg6 {[%clk 0:01:25]}  Rxd2 {[%clk 0:01:57]} 19. Rxd2 {[%clk 0:01:25]}  fxg6 {[%clk 0:01:56]} 20. Qxg6+ {[%clk 0:01:26]}  Qg7 {[%clk 0:01:48]} 21. Qxg7+ {[%clk 0:01:22]}  Kxg7 {[%clk 0:01:49]} 22. Bxe5 {[%clk 0:01:22]}  Kf7 {[%clk 0:01:38]} 23. Rd6 {[%clk 0:01:13]}  Ke7 {[%clk 0:01:38]} 24. f3 {[%clk 0:01:03]}  h5 {[%clk 0:01:31]} 25. h4 {[%clk 0:00:58]}  Nd7 {[%clk 0:01:27]} 26. Bh2 {[%clk 0:00:46]}  Nf6 {[%clk 0:01:23]} 27. Be5 {[%clk 0:00:43]}  Nd7 {[%clk 0:01:14]} 28. Bh2 {[%clk 0:00:42]}  Ba6 {[%clk 0:01:01]} 29. Rh6 {[%clk 0:00:36]}  Bxc4 {[%clk 0:00:57]} 30. Bd6+ {[%clk 0:00:34]}  Kf7 {[%clk 0:00:55]} 31. Bxf8 {[%clk 0:00:33]}  Nxf8 {[%clk 0:00:56]} 32. Rxh5 {[%clk 0:00:33]}  Bd3 {[%clk 0:00:55]} 33. Kf2 {[%clk 0:00:27]}  c4 {[%clk 0:00:54]} 34. e4 {[%clk 0:00:26]}  Ne6 {[%clk 0:00:54]} 35. Ke3 {[%clk 0:00:25]}  Bf1 {[%clk 0:00:55]} 36. g4 {[%clk 0:00:20]}  Nc5 {[%clk 0:00:55]} 37. Kd4 {[%clk 0:00:16]}  Nd3 {[%clk 0:00:55]} 38. Rf5+ {[%clk 0:00:13]}  Ke6 {[%clk 0:00:56]} 39. Kxc4 {[%clk 0:00:13]}  Nxb2+ {[%clk 0:00:56]} 40. Kb3 {[%clk 0:00:13]}  Nd3 {[%clk 0:00:57]} 41. Rh5 {[%clk 0:00:12]}  Be2 {[%clk 0:00:57]} 42. Rh6+ {[%clk 0:00:12]}  Kf7 {[%clk 0:00:57]} 43. Rh7+ {[%clk 0:00:12]}  Ke6 {[%clk 0:00:58]} 44. Rxa7 {[%clk 0:00:12]}  Bxf3 {[%clk 0:00:58]} 45. Kc3 {[%clk 0:00:12]}  Nc5 {[%clk 0:00:58]} 46. g5 {[%clk 0:00:10]}  Bxe4 {[%clk 0:00:59]} 47. Kd4 {[%clk 0:00:08]}  Bf3 {[%clk 0:00:58]} 48. a4 {[%clk 0:00:09]}  Nd7 {[%clk 0:00:56]} 49. a5 {[%clk 0:00:08]}  bxa5 {[%clk 0:00:57]} 50. Rxa5 {[%clk 0:00:08]}  Bh5 {[%clk 0:00:52]} 51. Ke3 {[%clk 0:00:08]}  Ne5 {[%clk 0:00:52]} 52. Kf4 {[%clk 0:00:08]}  Nd3+ {[%clk 0:00:51]} 53. Ke4 {[%clk 0:00:07]}  Bg6+ {[%clk 0:00:52]} 54. Ke3 {[%clk 0:00:07]}  Ne5 {[%clk 0:00:51]} 55. Kf4 {[%clk 0:00:05]}  Nd3+ {[%clk 0:00:52]} 56. Kg4 {[%clk 0:00:05]}  Nf2+ {[%clk 0:00:51]} 57. Kf3 {[%clk 0:00:05]}  Nd3 {[%clk 0:00:51]} 58. Ra6+ {[%clk 0:00:04]}  Kf7 {[%clk 0:00:50]} 59. Ke3 {[%clk 0:00:04]}  Ne5 {[%clk 0:00:50]} 60. Kf4 {[%clk 0:00:04]}  Nd3+ {[%clk 0:00:50]} 61. Ke3 {[%clk 0:00:04]}  Nc5 {[%clk 0:00:50]} 62. Rc6 {[%clk 0:00:04]}  Ne6 {[%clk 0:00:50]} 63. Kf3 {[%clk 0:00:03]}  Nd4+ {[%clk 0:00:50]} 64. Kg3 {[%clk 0:00:04]}  Nxc6 {[%clk 0:00:50]} 65. h5 {[%clk 0:00:03]}  Bxh5 {[%clk 0:00:51]} 66. Kh4 {[%clk 0:00:04]}  Kg6 {[%clk 0:00:51]} 67. Kg3 {[%clk 0:00:04]}  Kxg5 {[%clk 0:00:52]} 68. Kf2 {[%clk 0:00:04]}  Kf4 {[%clk 0:00:52]} 69. Ke1 {[%clk 0:00:05]}  Ke3 {[%clk 0:00:52]} 70. Kf1 {[%clk 0:00:04]}  Bf3 {[%clk 0:00:53]} 71. Ke1 {[%clk 0:00:04]}  Nd4 {[%clk 0:00:53]} 72. Kf1 {[%clk 0:00:05]}  Nc2 {[%clk 0:00:51]} 73. Kg1 {[%clk 0:00:05]}  Nb4 {[%clk 0:00:48]} 74. Kf1 {[%clk 0:00:05]}  Nd3 {[%clk 0:00:49]} 75. Kg1 {[%clk 0:00:05]}  Kf4 {[%clk 0:00:49]} 76. Kf1 {[%clk 0:00:06]}  Kg3 {[%clk 0:00:50]} 77. Kg1 {[%clk 0:00:06]}  Be2 {[%clk 0:00:49]} 78. Kh1 {[%clk 0:00:06]}  Ne5 {[%clk 0:00:48]} 79. Kg1 {[%clk 0:00:06]}  Bd3 {[%clk 0:00:46]} 80. Kh1 {[%clk 0:00:06]}  Bf1 {[%clk 0:00:44]} 81. Kg1 {[%clk 0:00:07]}  Bh3 {[%clk 0:00:44]} 82. Kh1 {[%clk 0:00:07]}  Bg2+ {[%clk 0:00:37]} 83. Kg1 {[%clk 0:00:07]}  Nf3# {[%clk 0:00:38]} 0-1


[Site "https://www.chess.com"]

[Event "Titled Tuesday Blitz August 31 2021"]
[White "Silva, Miguel Antonio Neto"]
[Black "Hansen, Eric"]
[WhiteFideId "1911929"]
[BlackFideId "2606771"]
[WhiteElo "2283"]
[BlackElo "2568"]
[Result "0-1"]
[Round "01"]
[TimeControl "180+1"]
[Date "2021.08.31"]
[WhiteClock "0:01:47"]
[BlackClock "0:02:19"]

1. e4 {[%clk 0:03:00]}  c5 {[%clk 0:02:59]} 2. Nf3 {[%clk 0:02:57]}  e6 {[%clk 0:02:59]} 3. g3 {[%clk 0:02:53]}  a6 {[%clk 0:02:57]} 4. Bg2 {[%clk 0:02:53]}  d6 {[%clk 0:02:58]} 5. O-O {[%clk 0:02:53]}  Nf6 {[%clk 0:02:58]} 6. Nc3 {[%clk 0:02:51]}  Nc6 {[%clk 0:02:58]} 7. d4 {[%clk 0:02:50]}  cxd4 {[%clk 0:02:59]} 8. Nxd4 {[%clk 0:02:50]}  Bd7 {[%clk 0:03:00]} 9. Re1 {[%clk 0:02:43]}  Rc8 {[%clk 0:02:59]} 10. Nxc6 {[%clk 0:02:21]}  Bxc6 {[%clk 0:02:56]} 11. e5 {[%clk 0:02:21]}  Bxg2 {[%clk 0:02:49]} 12. Kxg2 {[%clk 0:02:20]}  dxe5 {[%clk 0:02:49]} 13. Qxd8+ {[%clk 0:02:20]}  Kxd8 {[%clk 0:02:45]} 14. Rxe5 {[%clk 0:02:15]}  Bb4 {[%clk 0:02:45]} 15. Bd2 {[%clk 0:02:11]}  Ke7 {[%clk 0:02:45]} 16. Rd1 {[%clk 0:02:10]}  Rhd8 {[%clk 0:02:45]} 17. Ree1 {[%clk 0:02:07]}  Kf8 {[%clk 0:02:31]} 18. a3 {[%clk 0:02:05]}  Bxc3 {[%clk 0:02:32]} 19. Bxc3 {[%clk 0:02:03]}  Nd5 {[%clk 0:02:32]} 20. Ba5 {[%clk 0:01:54]}  b6 {[%clk 0:02:24]} 21. Bb4+ {[%clk 0:01:50]}  Kg8 {[%clk 0:02:22]} 22. Re2 {[%clk 0:01:47]}  Nf4+ {[%clk 0:02:19]} 0-1


[Site "https://www.chess.com"]

[Event "Titled Tuesday Blitz August 31 2021"]
[White "Sjugirov, Sanan"]
[Black "Martin Carmona, Gaston Manuel"]
[WhiteFideId "4189302"]
[BlackFideId "22284567"]
[WhiteElo "2472"]
[BlackElo "2161"]
[Result "1-0"]
[Round "01"]
[TimeControl "180+1"]
[Date "2021.08.31"]
[WhiteClock "0:00:06"]
[BlackClock "0:00:08"]

1. d4 {[%clk 0:03:00]}  Nf6 {[%clk 0:02:57]} 2. c4 {[%clk 0:02:59]}  g6 {[%clk 0:02:56]} 3. Nc3 {[%clk 0:02:59]}  Bg7 {[%clk 0:02:56]} 4. e4 {[%clk 0:02:59]}  d6 {[%clk 0:02:56]} 5. Nf3 {[%clk 0:02:57]}  O-O {[%clk 0:02:57]} 6. Be2 {[%clk 0:02:57]}  e5 {[%clk 0:02:55]} 7. O-O {[%clk 0:02:58]}  exd4 {[%clk 0:02:55]} 8. Nxd4 {[%clk 0:02:58]}  Re8 {[%clk 0:02:55]} 9. f3 {[%clk 0:02:58]}  c6 {[%clk 0:02:56]} 10. Nc2 {[%clk 0:02:58]}  Na6 {[%clk 0:02:35]} 11. Kh1 {[%clk 0:02:57]}  Nc5 {[%clk 0:02:33]} 12. Bg5 {[%clk 0:02:44]}  a5 {[%clk 0:02:28]} 13. Qd2 {[%clk 0:02:40]}  Ne6 {[%clk 0:02:16]} 14. Be3 {[%clk 0:02:37]}  Qc7 {[%clk 0:02:14]} 15. Rad1 {[%clk 0:02:36]}  Rd8 {[%clk 0:02:11]} 16. f4 {[%clk 0:02:33]}  Qe7 {[%clk 0:01:39]} 17. f5 {[%clk 0:02:24]}  Nf8 {[%clk 0:01:33]} 18. Bg5 {[%clk 0:02:11]}  Re8 {[%clk 0:00:52]} 19. Bf3 {[%clk 0:01:34]}  gxf5 {[%clk 0:00:47]} 20. exf5 {[%clk 0:01:34]}  Bxf5 {[%clk 0:00:48]} 21. Rde1 {[%clk 0:01:17]}  Qd7 {[%clk 0:00:42]} 22. Ne3 {[%clk 0:01:01]}  Bg6 {[%clk 0:00:42]} 23. Bxc6 {[%clk 0:00:52]}  bxc6 {[%clk 0:00:41]} 24. Bxf6 {[%clk 0:00:52]}  Bh6 {[%clk 0:00:40]} 25. Qf2 {[%clk 0:00:42]}  Re6 {[%clk 0:00:37]} 26. Ng4 {[%clk 0:00:31]}  Bg7 {[%clk 0:00:37]} 27. Bxg7 {[%clk 0:00:30]}  Kxg7 {[%clk 0:00:38]} 28. Qf4 {[%clk 0:00:23]}  Rae8 {[%clk 0:00:27]} 29. Nf6 {[%clk 0:00:22]}  Rxe1 {[%clk 0:00:20]} 30. Nxd7 {[%clk 0:00:22]}  Rxf1+ {[%clk 0:00:21]} 31. Qxf1 {[%clk 0:00:22]}  Nxd7 {[%clk 0:00:22]} 32. h3 {[%clk 0:00:20]}  Nc5 {[%clk 0:00:22]} 33. b3 {[%clk 0:00:17]}  Re6 {[%clk 0:00:22]} 34. Kh2 {[%clk 0:00:17]}  Rf6 {[%clk 0:00:21]} 35. Qd1 {[%clk 0:00:16]}  Nd3 {[%clk 0:00:19]} 36. Ne2 {[%clk 0:00:11]}  Nf2 {[%clk 0:00:18]} 37. Qd4 {[%clk 0:00:09]}  c5 {[%clk 0:00:18]} 38. Qe3 {[%clk 0:00:06]}  Ne4 {[%clk 0:00:17]} 39. Ng3 {[%clk 0:00:06]}  Nxg3 {[%clk 0:00:15]} 40. Qxg3 {[%clk 0:00:07]}  Re6 {[%clk 0:00:15]} 41. Qc3+ {[%clk 0:00:07]}  Kg8 {[%clk 0:00:15]} 42. Qxa5 {[%clk 0:00:08]}  Kg7 {[%clk 0:00:15]} 43. Qc3+ {[%clk 0:00:08]}  Kg8 {[%clk 0:00:14]} 44. a4 {[%clk 0:00:08]}  Re2 {[%clk 0:00:14]} 45. Qf3 {[%clk 0:00:07]}  Ra2 {[%clk 0:00:14]} 46. Qg3 {[%clk 0:00:05]}  Ra3 {[%clk 0:00:08]} 47. Qxd6 {[%clk 0:00:04]}  Rxb3 {[%clk 0:00:09]} 48. a5 {[%clk 0:00:05]}  Ra3 {[%clk 0:00:08]} 49. a6 {[%clk 0:00:05]}  Be4 {[%clk 0:00:08]} 50. Qd8+ {[%clk 0:00:05]}  Kg7 {[%clk 0:00:08]} 51. Qg5+ {[%clk 0:00:06]}  Kh8 {[%clk 0:00:08]} 52. Qe5+ {[%clk 0:00:06]} 1-0


[Site "https://www.chess.com"]

[Event "Titled Tuesday Blitz August 31 2021"]
[White "Srihari L R"]
[Black "Pandey Srishti"]
[WhiteFideId "46617116"]
[BlackFideId "35093290"]
[WhiteElo "2121"]
[BlackElo "1816"]
[Result "1-0"]
[Round "01"]
[TimeControl "180+1"]
[Date "2021.08.31"]
[WhiteClock "0:00:55"]
[BlackClock "0:00:59"]

1. Nf3 {[%clk 0:02:59]}  d5 {[%clk 0:02:54]} 2. g3 {[%clk 0:02:57]}  Nf6 {[%clk 0:02:53]} 3. Bg2 {[%clk 0:02:54]}  Bf5 {[%clk 0:02:53]} 4. O-O {[%clk 0:02:53]}  e6 {[%clk 0:02:52]} 5. d3 {[%clk 0:02:44]}  h6 {[%clk 0:02:50]} 6. Nbd2 {[%clk 0:02:44]}  Be7 {[%clk 0:02:48]} 7. Qe1 {[%clk 0:02:42]}  O-O {[%clk 0:02:44]} 8. e4 {[%clk 0:02:41]}  dxe4 {[%clk 0:02:44]} 9. dxe4 {[%clk 0:02:40]}  Bh7 {[%clk 0:02:44]} 10. Qe2 {[%clk 0:02:40]}  Nbd7 {[%clk 0:02:42]} 11. Rd1 {[%clk 0:02:38]}  e5 {[%clk 0:02:41]} 12. Nh4 {[%clk 0:02:33]}  c6 {[%clk 0:02:39]} 13. Nf5 {[%clk 0:02:28]}  Bc5 {[%clk 0:02:38]} 14. Nc4 {[%clk 0:02:20]}  Qc7 {[%clk 0:02:26]} 15. Be3 {[%clk 0:02:18]}  b5 {[%clk 0:02:15]} 16. Ncd6 {[%clk 0:02:03]}  Rfd8 {[%clk 0:02:03]} 17. Bxc5 {[%clk 0:01:34]}  Nxc5 {[%clk 0:02:02]} 18. Qe3 {[%clk 0:01:34]}  Ne6 {[%clk 0:01:58]} 19. Qc3 {[%clk 0:01:27]}  Nd4 {[%clk 0:01:46]} 20. Nxd4 {[%clk 0:01:22]}  Qxd6 {[%clk 0:01:47]} 21. Qxc6 {[%clk 0:01:09]}  exd4 {[%clk 0:01:45]} 22. Qxd6 {[%clk 0:01:07]}  Rxd6 {[%clk 0:01:44]} 23. e5 {[%clk 0:01:08]}  Rad8 {[%clk 0:01:41]} 24. exd6 {[%clk 0:01:07]}  Rxd6 {[%clk 0:01:42]} 25. Rd2 {[%clk 0:01:06]}  Be4 {[%clk 0:01:30]} 26. Rad1 {[%clk 0:01:04]}  Rc6 {[%clk 0:01:09]} 27. Bxe4 {[%clk 0:01:02]}  Nxe4 {[%clk 0:01:10]} 28. Rxd4 {[%clk 0:01:02]}  Nf6 {[%clk 0:01:10]} 29. c3 {[%clk 0:01:00]}  a6 {[%clk 0:01:09]} 30. Rd6 {[%clk 0:00:59]}  Rc4 {[%clk 0:00:58]} 31. Rxa6 {[%clk 0:00:58]}  b4 {[%clk 0:00:59]} 32. Ra4 {[%clk 0:00:55]} 1-0


[Site "https://www.chess.com"]

[Event "Titled Tuesday Blitz August 31 2021"]
[White "Suvorov, Luca"]
[Black "Holt, Conrad"]
[WhiteFideId "12977071"]
[BlackFideId "2034387"]
[WhiteElo "2127"]
[BlackElo "2586"]
[Result "1-0"]
[Round "01"]
[TimeControl "180+1"]
[Date "2021.08.31"]
[WhiteClock "0:00:03"]
[BlackClock "0:00:04"]

1. d4 {[%clk 0:02:57]}  d5 {[%clk 0:02:59]} 2. c4 {[%clk 0:02:57]}  c6 {[%clk 0:02:59]} 3. Nc3 {[%clk 0:02:57]}  dxc4 {[%clk 0:02:59]} 4. a4 {[%clk 0:02:52]}  e5 {[%clk 0:02:59]} 5. dxe5 {[%clk 0:02:50]}  Qxd1+ {[%clk 0:02:59]} 6. Kxd1 {[%clk 0:02:51]}  Nd7 {[%clk 0:02:55]} 7. f4 {[%clk 0:02:48]}  Nc5 {[%clk 0:02:55]} 8. e3 {[%clk 0:02:48]}  Bg4+ {[%clk 0:02:36]} 9. Nf3 {[%clk 0:02:48]}  O-O-O {[%clk 0:02:36]} 10. Kc2 {[%clk 0:02:48]}  Nd3 {[%clk 0:01:45]} 11. Bxd3 {[%clk 0:02:45]}  cxd3+ {[%clk 0:01:44]} 12. Kd2 {[%clk 0:02:45]}  f6 {[%clk 0:01:38]} 13. b3 {[%clk 0:02:31]}  Be6 {[%clk 0:01:21]} 14. Nd4 {[%clk 0:02:25]}  Bf7 {[%clk 0:01:13]} 15. e6 {[%clk 0:02:23]}  Be8 {[%clk 0:01:12]} 16. Ba3 {[%clk 0:02:11]}  Bxa3 {[%clk 0:01:10]} 17. Rxa3 {[%clk 0:02:12]}  c5 {[%clk 0:01:04]} 18. Nf3 {[%clk 0:01:54]}  f5 {[%clk 0:00:48]} 19. e4 {[%clk 0:01:02]}  Ne7 {[%clk 0:00:27]} 20. Ne5 {[%clk 0:00:58]}  Rd6 {[%clk 0:00:17]} 21. exf5 {[%clk 0:00:43]}  Nxf5 {[%clk 0:00:17]} 22. g4 {[%clk 0:00:43]}  Nd4 {[%clk 0:00:16]} 23. f5 {[%clk 0:00:43]}  h5 {[%clk 0:00:16]} 24. Nb5 {[%clk 0:00:39]}  Nxb5 {[%clk 0:00:13]} 25. axb5 {[%clk 0:00:40]}  hxg4 {[%clk 0:00:14]} 26. Rxa7 {[%clk 0:00:39]}  Kc7 {[%clk 0:00:11]} 27. Nc4 {[%clk 0:00:25]}  Rd5 {[%clk 0:00:08]} 28. Ne3 {[%clk 0:00:20]}  Rd4 {[%clk 0:00:06]} 29. Rc1 {[%clk 0:00:16]}  Bxb5 {[%clk 0:00:05]} 30. Kc3 {[%clk 0:00:12]}  Kb6 {[%clk 0:00:06]} 31. Ra2 {[%clk 0:00:11]}  Rf8 {[%clk 0:00:05]} 32. Rd2 {[%clk 0:00:08]}  Kc6 {[%clk 0:00:05]} 33. Re1 {[%clk 0:00:08]}  Kd6 {[%clk 0:00:05]} 34. Nc4+ {[%clk 0:00:06]}  Bxc4 {[%clk 0:00:05]} 35. bxc4 {[%clk 0:00:07]}  Ke7 {[%clk 0:00:05]} 36. Re5 {[%clk 0:00:05]}  b6 {[%clk 0:00:04]} 37. Rxd3 {[%clk 0:00:05]}  Rxd3+ {[%clk 0:00:04]} 38. Kxd3 {[%clk 0:00:05]}  Rd8+ {[%clk 0:00:05]} 39. Rd5 {[%clk 0:00:01]}  Rd6 {[%clk 0:00:03]} 40. Ke4 {[%clk 0:00:01]}  Rd8 {[%clk 0:00:02]} 41. Ke5 {[%clk 0:00:01]}  Ke8 {[%clk 0:00:03]} 42. Rxd8+ {[%clk 0:00:01]}  Kxd8 {[%clk 0:00:03]} 43. Kd6 {[%clk 0:00:02]}  b5 {[%clk 0:00:04]} 44. cxb5 {[%clk 0:00:01]}  c4 {[%clk 0:00:04]} 45. b6 {[%clk 0:00:02]}  c3 {[%clk 0:00:03]} 46. b7 {[%clk 0:00:02]}  c2 {[%clk 0:00:04]} 47. b8=Q# {[%clk 0:00:03]} 1-0


[Site "https://www.chess.com"]

[Event "Titled Tuesday Blitz August 31 2021"]
[White "Tymrakiewicz, Rafal"]
[Black "FGHSMN"]
[WhiteFideId "1108832"]
[WhiteElo "2172"]
[BlackElo "2676"]
[Result "1-0"]
[Round "01"]
[TimeControl "180+1"]
[Date "2021.08.31"]
[WhiteClock "0:00:39"]
[BlackClock "0:00:29"]

1. d4 {[%clk 0:02:53]}  Nf6 {[%clk 0:02:59]} 2. Bg5 {[%clk 0:02:53]}  Ne4 {[%clk 0:02:58]} 3. Bf4 {[%clk 0:02:52]}  c5 {[%clk 0:02:59]} 4. e3 {[%clk 0:02:51]}  d6 {[%clk 0:02:55]} 5. Nf3 {[%clk 0:02:42]}  g6 {[%clk 0:02:48]} 6. Nbd2 {[%clk 0:02:39]}  Nxd2 {[%clk 0:02:45]} 7. Qxd2 {[%clk 0:02:40]}  cxd4 {[%clk 0:02:24]} 8. exd4 {[%clk 0:02:40]}  Bg7 {[%clk 0:02:23]} 9. Bh6 {[%clk 0:02:31]}  O-O {[%clk 0:02:22]} 10. h4 {[%clk 0:02:15]}  Bg4 {[%clk 0:02:07]} 11. h5 {[%clk 0:02:15]}  Bxh5 {[%clk 0:01:35]} 12. Rxh5 {[%clk 0:02:06]}  Bxh6 {[%clk 0:01:18]} 13. Rxh6 {[%clk 0:01:56]}  Nc6 {[%clk 0:01:09]} 14. Bc4 {[%clk 0:01:44]}  d5 {[%clk 0:01:06]} 15. Bd3 {[%clk 0:01:38]}  e5 {[%clk 0:01:02]} 16. dxe5 {[%clk 0:01:34]}  Qe7 {[%clk 0:00:58]} 17. O-O-O {[%clk 0:01:31]}  Nxe5 {[%clk 0:00:51]} 18. Nxe5 {[%clk 0:01:25]}  Qxe5 {[%clk 0:00:51]} 19. Rdh1 {[%clk 0:01:21]}  Qg7 {[%clk 0:00:51]} 20. Qf4 {[%clk 0:00:57]}  Rfe8 {[%clk 0:00:31]} 21. Rxh7 {[%clk 0:00:45]}  Qxh7 {[%clk 0:00:29]} 22. Rxh7 {[%clk 0:00:44]}  Kxh7 {[%clk 0:00:30]} 23. Qxf7+ {[%clk 0:00:43]}  Kh8 {[%clk 0:00:29]} 24. Bxg6 {[%clk 0:00:39]} 1-0


[Site "https://www.chess.com"]